bitfinex/quotes_ETHUSD_20250622
["timestamp","ask_amount","ask_price","bid_price","bid_amount"]
[1750563184015,17.81226928,2260.0,2259.9,2.65498473]
[1750563184767,18.36226928,2260.0,2259.9,2.65498473]
[1750563184932,10.0,2259.9,2259.8,2.65506645]
[1750563185098,8.36226928,2260.0,2259.9,2.65498473]
[1750563185300,0.55,2259.9,2259.4,2.65557227]
[1750563185516,10.0,2259.7,2259.6,2.65533722]
[1750563186612,10.55,2259.7,2259.6,2.65533722]
[1750563186837,1.3452,2259.6,2258.9,5.56474881]
[1750563187021,10.0,2259.3,2259.2,2.65580736]
[1750563187222,17.58,2259.3,2259.2,2.65580736]
[1750563187399,18.13,2259.3,2259.2,2.65580736]
[1750563187599,10.0,2259.3,2259.2,2.65580736]
[1750563187813,17.58,2259.3,2259.2,2.65580736]
[1750563188298,1.3452,2259.6,2259.5,2.65545474]
[1750563188509,18.9252,2259.6,2259.5,2.65545474]
[1750563189157,2.65369305,2261.0,2259.6,2.65533722]
[1750563189314,40.43631562,2260.5,2259.7,0.04424199]
[1750563189514,9.65710266,2259.9,2259.4,10.629]
[1750563189822,0.7952,2259.6,2259.4,2.65546842]
[1750563190036,17.58,2259.5,2259.4,2.65546842]
[1750563190851,17.58,2259.5,2259.4,3.39508243]
[1750563190852,7.58,2259.5,2259.4,3.39508243]
[1750563191152,20.20710266,2260.0,2259.9,2.65498473]
[1750563191539,10.55,2259.9,2259.8,2.65504573]
[1750563193361,0.55,2259.8,2259.2,3.4809811]
[1750563193517,0.55,2259.8,2259.7,2.65521971]
[1750563193720,10.0,2260.0,2259.9,2.65498473]
[1750563194029,40.7961,2260.2,2260.1,2.65474978]
[1750563194217,48.9311,2260.2,2260.1,2.65474978]
[1750563194618,48.9311,2260.2,2259.7,2.081]
[1750563194619,0.55,2260.0,2259.7,2.081]
[1750563194817,0.7961,2260.5,2260.4,2.65439745]
[1750563195051,30.0,2260.7,2260.3,2.65442575]
[1750563195253,10.0,2260.3,2259.8,0.8252]
[1750563195429,17.592,2260.2,2260.1,2.65470904]
[1750563197465,7.592,2260.2,2260.0,2.65477042]
[1750563197972,0.55,2260.1,2259.8,2.65505873]
[1750563198282,7.591,2260.0,2259.9,2.65494375]
[1750563198490,2.86259027,2260.2,2260.1,2.65474978]
[1750563198696,7.59,2260.2,2260.1,2.65474978]
[1750563199074,7.586,2260.3,2259.9,3.42977782]
[1750563199243,17.586,2260.3,2260.2,2.65463233]
[1750563200677,17.586,2260.3,2259.1,8.02730114]
[1750563200678,10.55,2260.2,2259.6,5.51113191]
[1750563200869,10.55,2260.2,2260.1,2.65474978]
[1750563200870,0.55,2260.2,2260.1,2.65474978]
[1750563201177,8.144,2260.2,2260.1,2.65474978]
[1750563201475,10.7643,2260.1,2259.9,2.65495144]
[1750563201672,17.593,2260.0,2259.9,2.65495144]
[1750563202180,10.0,2260.0,2259.9,2.65495144]
[1750563202496,0.7643,2260.8,2260.7,2.6540452]
[1750563202795,7.593,2260.8,2260.7,2.6540452]
[1750563202943,7.593,2260.8,2260.5,2.65421979]
[1750563203143,30.0,2260.7,2260.3,2.081]
[1750563203356,10.23126951,2260.9,2260.8,2.65392781]
[1750563203575,0.55,2260.8,2260.7,2.65396266]
[1750563204183,19.88853673,2260.9,2260.7,2.65396266]
[1750563204348,0.55,2260.8,2260.7,2.65396266]
[1750563204971,10.23126951,2260.9,2260.8,2.65392781]
[1750563205181,17.82026951,2260.9,2260.7,2.65398237]
[1750563205464,17.82026951,2260.9,2260.4,2.08]
[1750563205465,17.82026951,2260.9,2260.8,2.65392781]
[1750563206043,0.23126951,2260.9,2260.8,2.65392781]
[1750563206240,0.23126951,2260.9,2260.8,3.22895538]
[1750563206444,10.23126951,2260.9,2260.7,4.73400749]
[1750563206640,7.589,2260.8,2260.7,4.73400749]
[1750563207677,8.139,2260.8,2260.4,2.65439745]
[1750563207850,7.589,2260.8,2260.5,2.08]
[1750563208051,10.41316722,2260.8,2260.6,2.65408277]
[1750563208558,0.55,2260.7,2260.5,2.65421097]
[1750563208884,7.585,2260.6,2260.5,2.65419554]
[1750563209090,17.585,2260.6,2260.5,2.65419554]
[1750563209486,17.584,2260.6,2260.5,2.65419554]
[1750563209685,17.81521354,2260.6,2260.5,2.65419554]
[1750563210374,10.23121354,2260.6,2260.5,2.65419554]
[1750563210579,10.23121354,2260.6,2260.5,3.45499554]
[1750563210779,17.81121354,2260.6,2260.5,2.65419554]
[1750563210966,19.59233489,2260.6,2260.5,2.65419554]
[1750563211565,17.81121354,2260.6,2260.5,2.65419554]
[1750563212389,17.81021354,2260.6,2260.5,2.65419554]
[1750563212704,10.23121354,2260.6,2260.5,2.65419554]
[1750563212998,10.23121354,2260.6,2260.5,3.41669554]
[1750563213163,10.23121354,2260.6,2260.5,2.65419554]
[1750563213364,17.81021354,2260.6,2260.5,2.65419554]
[1750563213574,10.0,2260.5,2260.4,2.65431572]
[1750563213800,7.81021354,2260.6,2260.5,2.65428002]
[1750563214006,0.55,2260.5,2260.2,2.65460642]
[1750563214166,0.55,2260.3,2260.0,2.65486105]
[1750563214505,10.0,2260.1,2260.0,2.65486725]
[1750563215369,7.583,2260.1,2260.0,2.65486725]
[1750563215570,0.55,2260.5,2260.3,2.65448766]
[1750563215765,10.55,2260.3,2259.9,4.73494415]
[1750563215976,17.583,2260.2,2260.1,2.65474978]
[1750563219779,10.0,2260.2,2260.1,2.65474978]
[1750563223189,17.579,2260.2,2260.1,2.65474978]
[1750563224711,10.0,2260.1,2260.0,2.65479224]
[1750563224888,17.579,2260.2,2260.0,2.65479224]
[1750563224889,7.81026353,2260.2,2260.0,2.65479224]
[1750563225086,17.81026353,2260.2,2260.1,2.65474978]
[1750563226825,10.23126353,2260.2,2260.1,3.18570398]
[1750563226985,0.23126353,2260.2,2260.1,3.99510398]
[1750563228690,0.23126353,2260.2,2260.1,4.03934039]
[1750563229525,0.23126353,2260.2,2260.1,3.99510398]
[1750563230131,0.23126353,2260.2,2260.1,6.07510398]
[1750563230425,0.23126353,2260.2,2260.1,3.46414978]
[1750563230606,0.23126353,2260.2,2260.1,3.50838645]
[1750563231306,17.579,2260.7,2260.6,2.65416261]
[1750563231501,17.81021797,2260.7,2260.6,2.65416261]
[1750563233031,20.22328977,2260.7,2260.6,2.65416261]
[1750563234235,10.23121797,2260.7,2260.6,2.65416261]
[1750563234439,17.80921797,2260.7,2260.6,2.65416261]
[1750563234821,0.23121797,2260.7,2260.6,3.45576261]
[1750563236138,0.23121797,2260.7,2260.6,2.65416261]
[1750563236336,7.80921797,2260.7,2260.6,2.65416261]
[1750563236938,10.21916977,2260.7,2260.6,2.65416261]
[1750563237539,10.21916977,2260.7,2260.5,2.65421951]
[1750563237744,0.55,2260.6,2260.4,2.65432962]
[1750563237911,0.55,2260.6,2260.5,2.65428002]
[1750563238109,8.127,2260.6,2260.5,2.65428002]
[1750563238413,0.55,2260.6,2260.5,2.65428002]
[1750563238619,8.127,2260.6,2260.5,2.65428002]
[1750563240344,10.29043319,2260.6,2260.4,2.65433618]
[1750563240544,0.23121797,2260.7,2260.1,2.9044]
[1750563240762,17.80821797,2260.7,2260.6,2.65416261]
[1750563241615,17.80821797,2260.7,2260.1,0.8244]
[1750563241825,10.55,2260.6,2260.3,2.65446179]
[1750563242030,10.4128218,2260.5,2260.3,2.65446179]
[1750563242237,18.127,2260.5,2260.4,2.65439745]
[1750563243317,17.577,2260.5,2260.4,2.65439745]
[1750563245154,18.127,2260.5,2260.4,2.65439745]
[1750563246833,18.127,2260.5,2260.3,2.65445795]
[1750563247040,18.127,2260.5,2260.4,2.65439745]
[1750563247457,18.127,2260.5,2260.3,2.65447056]
[1750563247755,8.127,2260.5,2260.4,2.65439745]
[1750563247959,8.127,2260.5,2260.0,2.08]
[1750563247960,8.127,2260.5,2260.3,2.65445081]
[1750563248130,11.3661,2260.4,2260.2,2.65461947]
[1750563248451,18.126,2260.3,2260.2,2.65461947]
[1750563252276,10.0,2260.3,2260.2,2.65461947]
[1750563252563,18.3921,2260.3,2260.2,2.65463233]
[1750563252860,19.96522573,2260.3,2260.2,2.65463233]
[1750563253055,18.9421,2260.3,2260.2,2.65463233]
[1750563253272,17.576,2260.3,2260.2,2.65463233]
[1750563256575,17.576,2260.3,2259.8,3.43436856]
[1750563256576,17.576,2260.3,2259.8,0.7793]
[1750563256737,17.576,2260.3,2258.4,2.65666495]
[1750563256738,1.3508,2260.2,2259.9,2.6549053]
[1750563257076,10.0,2260.0,2259.9,2.6549053]
[1750563257586,0.55,2259.9,2259.5,2.65538086]
[1750563257793,0.8008,2259.4,2259.1,2.078]
[1750563258091,10.0,2259.7,2259.4,2.65557227]
[1750563258092,0.8008,2259.7,2259.4,2.65557227]
[1750563258241,10.0,2259.5,2259.3,2.65562014]
[1750563258440,7.575,2259.4,2259.2,2.65576805]
[1750563258745,0.55,2259.3,2259.1,2.078]
[1750563258944,7.575,2259.2,2259.1,4.73392492]
[1750563259183,7.575,2259.2,2259.1,2.078]
[1750563259916,7.575,2259.2,2259.1,4.73392492]
[1750563261771,10.0,2259.3,2259.2,2.65580736]
[1750563262342,10.0,2259.3,2259.1,4.73391469]
[1750563262682,17.576,2259.2,2259.1,4.73391469]
[1750563263777,17.576,2259.2,2259.1,2.078]
[1750563264190,17.8073653,2259.2,2259.1,2.078]
[1750563264542,17.8073653,2259.2,2259.1,4.73392492]
[1750563265240,17.8073653,2259.2,2259.1,2.078]
[1750563265436,10.2313653,2259.2,2259.1,5.20732698]
[1750563265661,10.2313653,2259.2,2259.1,6.01852698]
[1750563265856,10.2313653,2259.2,2259.1,6.06278733]
[1750563266255,0.2313653,2259.2,2259.1,10.72278733]
[1750563266576,0.2313653,2259.2,2259.1,10.67852698]
[1750563266763,10.0,2259.6,2259.5,3.46305474]
[1750563266964,0.55,2260.0,2259.8,2.65508531]
[1750563267169,17.575,2259.9,2259.8,2.65508531]
[1750563267476,7.575,2259.9,2259.8,2.65508531]
[1750563267862,7.575,2259.9,2259.7,4.7341447]
[1750563268173,0.55,2259.8,2259.6,2.65528032]
[1750563268383,17.575,2259.7,2259.6,2.65528032]
[1750563269758,10.0,2259.7,2259.6,3.46288032]
[1750563271654,10.0,2259.7,2259.6,2.65528032]
[1750563272989,10.0,2259.7,2259.5,4.73444115]
[1750563273186,7.574,2259.6,2259.5,4.73444115]
[1750563274190,10.0,2259.7,2259.6,2.65533722]
[1750563274370,10.0,2259.7,2259.6,3.46273722]
[1750563275202,0.23131049,2260.0,2259.9,2.65498473]
[1750563275527,7.80431049,2260.0,2259.9,2.65498473]
[1750563276486,0.23131049,2260.0,2259.9,2.65498473]
[1750563276677,10.23131049,2260.0,2259.9,2.69923314]
[1750563276895,10.23131049,2260.0,2259.9,2.65498473]
[1750563277815,0.23131049,2260.0,2259.9,3.44758473]
[1750563278220,0.23131049,2260.0,2259.9,4.78937302]
[1750563278387,0.23131049,2260.0,2259.9,4.83361699]
[1750563279195,0.23131049,2260.0,2259.9,4.78937302]
[1750563279602,0.23131049,2260.0,2259.9,5.52658473]
[1750563280123,0.23131049,2260.0,2259.9,4.73398473]
[1750563280325,0.23131049,2260.0,2259.9,2.65498473]
[1750563280618,0.23131049,2260.0,2259.9,4.73398473]
[1750563281993,0.23131049,2260.0,2259.9,2.65498473]
[1750563282192,0.23131049,2260.0,2259.9,4.73398473]
[1750563282623,0.23131049,2260.0,2259.9,5.55938473]
[1750563282828,0.23131049,2260.0,2259.9,7.11235302]
[1750563283130,0.23131049,2260.0,2259.9,5.55938473]
[1750563284694,0.23131049,2260.0,2259.9,10.21938473]
[1750563287501,0.23131049,2260.0,2259.9,8.14138473]
[1750563287707,0.23131049,2260.0,2259.9,17.78438473]
[1750563291134,10.0,2260.9,2260.3,0.8106]
[1750563291315,7.89670999,2261.0,2260.9,2.65381042]
[1750563291509,7.89670999,2261.0,2260.9,4.72781042]
[1750563292228,7.89670999,2261.0,2260.9,10.684005]
[1750563292428,7.89670999,2261.0,2260.9,19.060605]
[1750563294846,7.89670999,2261.0,2260.9,19.058605]
[1750563297628,7.89670999,2261.0,2260.9,18.248005]
[1750563298521,7.89670999,2261.0,2260.9,10.684005]
[1750563299604,7.89670999,2261.0,2260.9,11.494605]
[1750563300255,7.89670999,2261.0,2260.9,10.684005]
[1750563300626,17.89670999,2261.0,2260.9,4.72681042]
[1750563300812,7.89670999,2261.0,2260.9,4.72681042]
[1750563301013,7.89670999,2261.0,2260.9,17.48039993]
[1750563302352,8.313,2262.2,2262.1,2.65240263]
[1750563302554,10.753,2262.2,2262.1,2.65240263]
[1750563303035,10.753,2262.2,2262.0,2.65249258]
[1750563303242,12.62879589,2262.2,2262.0,2.65249258]
[1750563303629,10.753,2262.0,2261.4,4.42868951]
[1750563303959,0.753,2261.8,2261.7,2.65275966]
[1750563304152,8.312,2261.8,2261.7,2.65275966]
[1750563305032,7.558,2262.0,2261.9,2.65263716]
[1750563305229,18.311,2262.0,2261.9,2.65263716]
[1750563305429,2.65181726,2262.6,2261.9,2.65263716]
[1750563305430,0.753,2262.9,2262.5,2.65192207]
[1750563305631,14.0,2262.6,2262.5,2.65192207]
[1750563305955,14.55,2262.6,2262.5,2.65192207]
[1750563306267,10.0,2262.6,2262.5,2.65192207]
[1750563306557,2.58359993,2263.0,2262.8,2.65156342]
[1750563306717,2.81461274,2263.0,2262.9,2.65146493]
[1750563306921,10.23101281,2263.0,2262.9,2.65146493]
[1750563307220,0.23101281,2263.0,2262.9,2.65146493]
[1750563307653,0.23101281,2263.0,2262.9,2.69564954]
[1750563307860,0.23101281,2263.0,2262.9,2.65146493]
[1750563308164,0.23101281,2263.0,2262.9,4.72446493]
[1750563308828,1.04881281,2263.0,2262.9,4.72446493]
[1750563309365,0.23101281,2263.0,2262.9,4.72446493]
[1750563309942,0.23101281,2263.0,2262.9,4.76865101]
[1750563310156,0.23101281,2263.0,2262.9,4.72446493]
[1750563311571,0.23101281,2263.0,2262.9,6.25716777]
[1750563311775,0.8217,2263.6,2263.5,2.65076209]
[1750563312869,0.23094197,2263.7,2263.6,2.65064499]
[1750563313293,7.553,2263.8,2263.7,2.65052789]
[1750563313497,1.2733109,2264.2,2264.1,2.65005962]
[1750563313793,20.50364199,2264.2,2264.1,2.65005962]
[1750563314002,14.73452735,2264.2,2264.1,2.65005962]
[1750563314290,12.60558536,2264.2,2264.1,2.65005962]
[1750563314492,19.15558536,2264.2,2264.1,2.65005962]
[1750563314848,11.05258536,2264.2,2264.1,2.65005962]
[1750563315071,18.60458536,2264.2,2264.1,2.65005962]
[1750563315598,19.15458536,2264.2,2264.1,2.65005962]
[1750563315800,21.0700439,2264.2,2264.1,2.65005962]
[1750563317250,21.0700439,2264.2,2264.0,2.65016437]
[1750563317251,10.0,2264.1,2264.0,2.65016437]
[1750563317450,0.55,2264.1,2264.0,2.65016437]
[1750563318668,11.51489602,2264.2,2264.1,2.65005962]
[1750563320566,10.55,2264.1,2263.9,2.65019601]
[1750563320791,0.8217,2264.0,2263.1,0.7951]
[1750563321072,18.098,2263.9,2263.8,2.65041081]
[1750563321302,0.8217,2264.0,2263.9,2.65029374]
[1750563321462,10.0,2264.0,2263.9,2.65029374]
[1750563323611,7.77788536,2264.2,2264.1,2.65005962]
[1750563323770,17.77788536,2264.2,2264.1,2.65005962]
[1750563324825,10.23088536,2264.2,2264.1,2.65005962]
[1750563324983,10.23088536,2264.2,2264.1,3.44511047]
[1750563325727,10.23088536,2264.2,2264.1,4.24021047]
[1750563325728,0.23088536,2264.2,2264.1,4.24021047]
[1750563326384,0.23088536,2264.2,2264.1,4.28437165]
[1750563326706,0.23088536,2264.2,2264.1,4.24021047]
[1750563327429,0.23088536,2264.2,2264.1,4.28436659]
[1750563327607,0.7744,2265.6,2265.0,2.64898642]
[1750563327930,37.544,2265.5,2265.4,2.64853888]
[1750563328080,7.77478369,2265.5,2265.3,2.64860003]
[1750563328287,13.2761139,2265.4,2265.2,2.64877273]
[1750563328484,0.23078369,2265.5,2265.4,2.64853888]
[1750563328797,10.23078369,2265.5,2265.4,2.64853888]
[1750563329804,0.23078369,2265.5,2265.4,2.64853888]
[1750563330211,10.23078369,2265.5,2265.4,2.64853888]
[1750563331189,10.78078369,2265.5,2264.7,0.7804]
[1750563331454,10.78078369,2265.5,2265.3,2.64864118]
[1750563331750,0.55,2265.4,2265.3,2.64864118]
[1750563332536,10.23078369,2265.5,2265.4,2.64853888]
[1750563334412,10.23078369,2265.5,2265.2,2.64874244]
[1750563334613,10.23078369,2265.5,2265.2,2.065]
[1750563334818,10.78078369,2265.5,2265.4,2.64853888]
[1750563335615,10.23078369,2265.5,2265.4,2.64853888]
[1750563335854,0.23078369,2265.5,2265.4,3.3847491]
[1750563336018,7.77178369,2265.5,2265.4,3.3847491]
[1750563336214,0.23078369,2265.5,2265.4,3.3847491]
[1750563337160,1.02978369,2265.5,2265.4,3.3847491]
[1750563337326,1.02978369,2265.5,2264.4,2.065]
[1750563337327,0.55,2265.1,2264.4,2.065]
[1750563337682,11.349,2264.9,2264.6,2.64941517]
[1750563338065,0.799,2265.2,2264.5,0.8022]
[1750563338223,0.23078369,2265.5,2265.4,2.64853888]
[1750563338568,0.23078369,2265.5,2265.4,4.71353888]
[1750563338925,0.23078369,2265.5,2265.4,5.51573888]
[1750563339372,0.23078369,2265.5,2265.4,5.55987368]
[1750563339532,0.23078369,2265.5,2265.4,5.51573888]
[1750563339732,0.23078369,2265.5,2265.4,6.59705372]
[1750563340861,0.23078369,2265.5,2265.4,6.64118759]
[1750563341082,0.799,2266.3,2266.2,2.64760391]
[1750563341645,1.02964804,2266.3,2266.2,2.64760391]
[1750563342048,1.02964804,2266.3,2266.1,2.6476897]
[1750563342266,1.57964804,2266.3,2266.2,2.64760391]
[1750563342470,1.57964804,2266.3,2266.1,2.64767648]
[1750563343274,0.55,2266.2,2265.9,2.64784968]
[1750563343474,0.55,2265.9,2265.8,2.64802222]
[1750563343772,0.55,2265.7,2265.4,2.064]
[1750563343932,0.7506,2265.8,2265.4,2.64853888]
[1750563343933,10.55,2265.5,2265.4,2.64853888]
[1750563344348,0.7506,2265.4,2264.8,2.64922241]
[1750563344547,1.3006,2265.4,2265.3,2.6486558]
[1750563345874,0.7506,2265.4,2265.3,2.6486558]
[1750563346173,10.7506,2265.4,2265.3,2.6486558]
[1750563346385,10.0,2265.4,2265.3,3.38479763]
[1750563347882,10.0,2265.4,2265.3,4.7086558]
[1750563349985,1.3498,2265.7,2265.5,2.64840148]
[1750563350286,8.3358,2265.9,2265.8,2.64807132]
[1750563350693,18.3358,2265.9,2265.8,2.64807132]
[1750563351049,18.3358,2265.9,2265.7,2.64807684]
[1750563351050,10.0,2265.8,2265.7,2.64807684]
[1750563351248,8.8858,2265.9,2265.8,2.64807132]
[1750563352289,10.0,2266.0,2265.9,2.64795445]
[1750563352493,7.535,2266.0,2265.9,2.64795445]
[1750563352894,0.7934,2266.1,2266.0,2.64783759]
[1750563353094,18.3284,2266.1,2266.0,2.64783759]
[1750563355474,10.7934,2266.1,2266.0,2.64783759]
[1750563355702,10.0,2266.1,2266.0,2.64783759]
[1750563355920,0.87158934,2266.6,2266.0,2.64783759]
[1750563355921,0.2222433,2266.6,2266.3,0.7541]
[1750563356205,0.7994,2268.0,2267.9,2.64561929]
[1750563356404,4.0,2268.0,2267.9,2.64561929]
[1750563356820,7.79248633,2268.1,2268.0,2.64550264]
[1750563357121,10.18048633,2268.1,2268.0,2.64550264]
[1750563357272,7.559,2268.2,2268.0,2.64550264]
[1750563357472,8.48362177,2268.2,2267.4,0.7541]
[1750563357792,30.0,2268.0,2267.8,2.64562394]
[1750563357987,30.0,2268.0,2267.0,2.64663166]
[1750563357988,17.562,2267.9,2267.5,2.06]
[1750563358165,0.55,2267.8,2267.7,2.64585262]
[1750563358366,0.55,2267.8,2267.5,4.70608317]
[1750563358367,0.55,2267.8,2267.6,2.64592468]
[1750563358589,0.55,2267.8,2267.5,2.06]
[1750563358776,1.3494,2267.8,2267.5,2.06]
[1750563359202,1.3494,2267.8,2267.3,2.64631093]
[1750563359417,7.561,2267.7,2267.5,2.6460501]
[1750563359703,7.561,2267.7,2267.5,2.64608599]
[1750563359870,7.561,2267.7,2267.4,2.06]
[1750563359871,0.55,2267.6,2267.4,4.70616165]
[1750563360073,10.55,2267.6,2267.4,2.64616165]
[1750563360292,0.78049934,2267.6,2267.5,2.64608599]
[1750563360492,0.78049934,2267.6,2267.3,2.06]
[1750563360691,10.55,2267.4,2266.9,2.059]
[1750563360870,10.15513321,2267.1,2266.6,2.64705477]
[1750563361069,0.55,2266.8,2266.6,2.64704496]
[1750563361269,0.55,2266.6,2266.3,13.24538217]
[1750563361704,18.136,2266.5,2266.2,2.059]
[1750563361915,9.60513321,2266.8,2266.2,4.70660118]
[1750563362201,0.55,2266.6,2266.5,2.64725347]
[1750563362911,0.55,2266.4,2266.2,2.059]
[1750563363074,17.583,2266.3,2266.2,4.70660391]
[1750563363713,10.0,2266.3,2266.2,4.70660391]
[1750563363911,17.583,2266.3,2266.2,4.70660391]
[1750563365072,18.133,2266.3,2266.2,4.70660391]
[1750563365404,18.133,2266.3,2266.2,2.64760391]
[1750563365603,10.55,2266.3,2266.2,2.64760391]
[1750563365767,18.129,2266.3,2266.2,2.64760391]
[1750563365970,10.55,2266.2,2266.1,2.64772075]
[1750563366784,10.55,2266.2,2266.0,2.64781504]
[1750563366989,17.576,2266.1,2265.9,2.64789647]
[1750563367201,0.55,2266.0,2265.9,2.64789647]
[1750563367403,17.576,2266.1,2266.0,2.64783759]
[1750563367404,10.0,2266.1,2266.0,2.64783759]
[1750563369125,7.571,2266.2,2266.1,2.64772075]
[1750563369304,8.8781,2266.2,2266.1,2.64772075]
[1750563370125,0.55,2266.1,2266.0,2.64777699]
[1750563371744,7.571,2266.2,2266.1,2.64772075]
[1750563372031,8.121,2266.2,2266.1,2.64772075]
[1750563372797,8.121,2266.2,2266.0,2.64780185]
[1750563372994,8.121,2266.2,2266.1,2.64772075]
[1750563374297,7.571,2266.2,2266.1,2.64772075]
[1750563374722,10.8248,2266.5,2266.4,2.64737027]
[1750563375032,18.3908,2266.5,2266.4,2.64737027]
[1750563375353,7.565,2266.5,2266.4,2.64737027]
[1750563375635,18.115,2266.5,2266.4,2.64737027]
[1750563376701,18.34562514,2266.5,2266.4,2.64737027]
[1750563378334,18.33462514,2266.5,2266.4,2.64737027]
[1750563379832,0.23062514,2266.5,2266.4,2.64737027]
[1750563380006,0.8134,2267.0,2266.9,2.64678636]
[1750563380199,18.3594,2267.0,2266.9,2.64678636]
[1750563380614,18.5899848,2267.0,2266.9,2.64678636]
[1750563380818,17.7765848,2267.0,2266.9,2.64678636]
[1750563381037,18.3265848,2267.0,2266.9,2.64678636]
[1750563382334,0.55,2266.9,2266.7,2.64695043]
[1750563382536,0.55,2266.9,2266.8,2.64690312]
[1750563382836,10.7805848,2267.0,2266.9,2.64678636]
[1750563383400,10.2305848,2267.0,2266.9,2.64678636]
[1750563383609,7.7815848,2267.0,2266.9,3.44085035]
[1750563384112,7.7815848,2267.0,2266.9,2.64678636]
[1750563385606,7.7815848,2267.0,2266.9,4.72078636]
[1750563386515,18.3315848,2267.0,2266.9,2.64678636]
[1750563388138,17.7815848,2267.0,2266.9,2.64678636]
[1750563388439,17.7735848,2267.0,2266.9,2.64678636]
[1750563389039,10.2305848,2267.0,2266.9,2.64678636]
[1750563389240,17.7735848,2267.0,2266.9,2.64678636]
[1750563390445,10.55,2266.9,2266.4,0.7715]
[1750563390756,8.089,2266.8,2266.7,2.64701989]
[1750563390917,21.29408292,2266.8,2266.7,2.64701989]
[1750563391234,24.52900969,2266.8,2266.7,2.64701989]
[1750563391542,34.52900969,2266.8,2266.7,2.64701989]
[1750563391761,10.55,2266.7,2266.4,2.073]
[1750563392064,18.084,2266.6,2266.5,2.64715684]
[1750563392408,0.55,2266.5,2266.4,2.64731145]
[1750563392610,13.75508292,2266.5,2266.4,2.64731145]
[1750563392842,13.75508292,2266.5,2266.2,2.073]
[1750563392843,26.88399121,2266.5,2266.2,2.073]
[1750563393048,10.55,2266.3,2266.2,4.72053896]
[1750563393419,10.55,2266.3,2266.2,2.073]
[1750563393836,10.55,2266.3,2266.2,4.72060391]
[1750563394714,10.0,2266.3,2266.2,2.64760391]
[1750563395052,0.55,2266.4,2266.3,2.6474656]
[1750563395348,10.0,2266.6,2266.5,2.64725347]
[1750563395553,18.084,2266.6,2266.5,2.64725347]
[1750563395843,0.8246,2266.9,2266.8,2.64690312]
[1750563396046,24.44453099,2266.9,2266.8,2.64690312]
[1750563396207,24.99453099,2266.9,2266.8,2.64690312]
[1750563396809,20.99453099,2266.9,2266.8,2.64690312]
[1750563397550,10.99453099,2266.9,2266.8,2.64690312]
[1750563397727,8.9086,2266.9,2266.8,2.64690312]
[1750563399438,0.55,2266.8,2266.7,2.64696967]
[1750563400426,0.55,2266.8,2266.1,0.8215]
[1750563400765,0.55,2266.5,2266.4,2.64737027]
[1750563401050,7.534,2266.5,2266.4,2.64737027]
[1750563403148,17.534,2266.5,2266.4,2.64737027]
[1750563406676,0.23060932,2266.5,2266.4,3.17685377]
[1750563406973,19.60270678,2267.1,2267.0,2.6466696]
[1750563407140,31.13570678,2267.1,2267.0,2.6466696]
[1750563407340,21.13570678,2267.1,2267.0,2.6466696]
[1750563407535,27.91628166,2267.1,2267.0,2.6466696]
[1750563408163,27.91628166,2267.1,2266.9,2.64674162]
[1750563408164,10.55,2267.0,2266.9,2.64674162]
[1750563408367,8.083,2267.0,2266.9,2.64674162]
[1750563408647,18.083,2267.0,2266.9,2.64674162]
[1750563410355,18.083,2267.0,2266.8,2.64684473]
[1750563410763,18.083,2267.0,2266.9,2.64678636]
[1750563410968,20.95621817,2267.0,2266.8,2.64684079]
[1750563412374,18.083,2267.0,2266.9,2.64678636]
[1750563412582,18.082,2267.0,2266.9,2.64678636]
[1750563414184,10.0,2267.0,2266.9,2.64678636]
[1750563414356,10.0,2267.0,2266.9,3.40278636]
[1750563414674,17.532,2267.0,2266.9,3.40278636]
[1750563415976,10.0,2267.0,2266.9,4.01216622]
[1750563416485,10.36760678,2268.0,2267.4,3.40220269]
[1750563416646,10.36760678,2268.0,2267.9,2.64561929]
[1750563416850,17.95663761,2268.0,2267.9,2.64561929]
[1750563417048,34.72273761,2268.0,2267.9,2.64561929]
[1750563417283,27.97221852,2268.0,2267.9,2.64561929]
[1750563417448,31.50321852,2268.0,2267.9,2.64561929]
[1750563417794,30.95321852,2268.0,2267.9,2.64561929]
[1750563418163,7.76148091,2268.0,2267.9,3.17474621]
[1750563418549,0.23048091,2268.0,2267.9,3.17474621]
[1750563418885,7.76048091,2268.0,2267.9,3.17474621]
[1750563420190,7.76048091,2268.0,2267.9,2.64561929]
[1750563420501,0.55,2267.9,2267.5,0.756]
[1750563420665,0.55,2267.9,2264.5,7.94524132]
[1750563420666,0.55,2267.4,2266.7,0.756]
[1750563420988,0.55,2267.4,2266.6,12.656]
[1750563420989,10.0,2266.6,2266.4,2.6472619]
[1750563421193,18.078,2266.5,2266.4,2.64737027]
[1750563421346,18.2963,2266.5,2266.2,2.64760391]
[1750563421556,18.2963,2266.5,2266.1,2.059]
[1750563421557,13.74173761,2266.3,2266.1,2.059]
[1750563421754,13.74173761,2266.3,2266.1,4.70666013]
[1750563421755,18.078,2266.2,2266.1,4.70666013]
[1750563422092,10.0,2266.2,2266.1,4.70666013]
[1750563422292,17.528,2266.2,2266.1,4.70666013]
[1750563422766,10.0,2266.2,2266.1,5.44210691]
[1750563422964,0.7683,2266.5,2266.4,2.64737027]
[1750563423165,7.528,2266.6,2266.5,2.64725347]
[1750563423575,10.55,2267.0,2266.9,2.64678636]
[1750563423762,18.079,2267.0,2266.9,2.64678636]
[1750563423956,17.529,2267.0,2266.9,2.64678636]
[1750563429692,10.0,2267.0,2266.9,3.17615379]
[1750563430002,11.22314509,2267.9,2267.4,2.64620269]
[1750563430163,7.528,2267.8,2267.7,2.64585262]
[1750563430362,21.528,2267.8,2267.7,2.64585262]
[1750563430699,22.078,2267.8,2267.7,2.64585262]
[1750563430900,17.526,2267.8,2267.7,2.64585262]
[1750563431703,17.527,2267.8,2267.7,2.64585262]
[1750563433063,10.0,2267.7,2267.6,2.6459693]
[1750563433892,7.75749545,2267.8,2267.7,2.64585262]
[1750563433893,0.23049545,2267.8,2267.7,2.64585262]
[1750563434281,18.30649545,2267.8,2267.7,2.64585262]
[1750563434683,17.75649545,2267.8,2267.7,2.64585262]
[1750563434985,0.23049545,2267.8,2267.7,2.64585262]
[1750563435187,7.75649545,2267.8,2267.7,3.17503481]